Cogmind - Beta 10.2 --- EXPLORER MODE // 2021.09.19 @ 09:17:32 Player: Chiefwannatoke Result: Destroyed by S-43 Plague with Heavy Machine Gun Performance ------------- Evolutions (8) 4000 Regions Visited (22) 4400 Robots Destroyed (172) 860 Value Destroyed (10316) 10316 Prototype IDs (46) 920 Alien Tech Used (0) 0 Bonus (3274) 3274 TOTAL SCORE: 23770 Bonus ------- Pacifist 200 High Alert Combat Kills 810 Follower Combat Kills 2616 Network Hubs Disabled 200 Built Enhanced Grunts 300 A7 Reached Mainframe 300 Scanned by Researcher 500 Friendly Fire -1652 Cogmind --------- Core Integrity 0/1450 Matter 246/300 Energy 67/100 System Corruption 40% Temperature Cool (4) Movement Walking (115) Location -2/Section 7 Parts ------- > --- POWER (2) -------- (None) > --- PROPULSION (5) --- Biometal Leg Centrium Leg > --- UTILITY (12) ----- Improved Targeting Computer > --- WEAPON (5) ------- (None) > --- INVENTORY (4) ---- (None) Peak State ------------ > --- POWER ------------ Quantum Reactor Improved Quantum Reactor > --- PROPULSION ------- Armored Medium Treads Biometal Heavy Treads Experimental Biometal Heavy Treads > --- UTILITY ---------- Experimental Heat Sink Advanced Coolant Injector Energy Well Advanced Signal Interpreter Improved Targeting Computer Advanced Target Analyzer Advanced Core Analyzer Advanced Kinecellerator Improved Weapon Cycler Experimental Weapon Shielding Centrium Medium Armor Plating Hacking Suite > --- WEAPON ----------- Heavy Quantum Rifle High-powered Disruptor Cannon Null Cannon Fusion Bomb Launcher > --- INVENTORY -------- Light Quantum Reactor Centrium Light Armor Plating Antimissile System Enhanced Quantum Rifle [Rating: 198] Favorites ----------- Power Quantum Reactor Engine Light Ion Engine Power Core Micro Nuclear Core Reactor Quantum Reactor Propulsion Centrium Heavy Treads Treads Centrium Heavy Treads Leg Aluminum Leg Flight Unit Nuclear Pulse Array Utility Advanced Signal Interpreter Device Experimental Heat Sink Storage Medium Storage Unit Processor Advanced Signal Interpreter Hackware Hacking Suite Protection Core Shielding Weapon Quantum Rifle Energy Gun Quantum Rifle Energy Cannon Heavy Neutron Cannon Ballistic Gun KE Penetrator Ballistic Cannon Hardcell Cannon Launcher Fusion Bomb Launcher Build | -11 -10 -10 -9 -8 -7 -7 -7 -6 -6 -6 -6 -6 -5 -5 -5 -5 -5 -4 -3 -2 -2 -2 ------- Run | Scr Mat Min Mat Mat Fac Low Low Fac Was Fac Low Low Fac Ext Cet Arc Hub Fac Res Res Tes Sec Slots Evolved 17 | . 1 . 2 2 2 . . 2 . . . . 2 . . . . 2 2 2 . . Power 1 | . . . . . . . . . . . . . . . . . . . . 1 . . Propulsion 3 | . . . . 1 1 . . . . . . . 1 . . . . . . . . . Utility 10 | . 1 . 2 1 1 . . 1 . . . . 1 . . . . 1 1 1 . . Weapon 3 | . . . . . . . . 1 . . . . . . . . . 1 1 . . . Parts Attached 229 | 8 1 1 12 16 5 6 . 4 6 7 2 . 6 20 7 4 10 18 15 44 35 2 Power 26 | 1 . . 1 . . 1 . 1 1 . . . . 3 1 . . 1 1 9 6 . Engine 4 | 1 . . 1 . . 1 . . . . . . . 1 . . . . . . . . Core 5 | . . . . . . . . 1 . . . . . 2 . . . . . 1 1 . Reactor 17 | . . . . . . . . . 1 . . . . . 1 . . 1 1 8 5 . Propulsion 55 | 2 . . 3 5 3 1 . 2 3 4 1 . 4 1 2 1 6 2 2 6 5 2 Treads 19 | . . . . . . . . . . . . . . . 2 1 3 2 2 6 3 . Leg 26 | 2 . . 3 5 3 1 . 2 1 2 . . . . . . 3 . . . 2 2 Wheel . | . . . . . . . . . . . . . . . . . . . . . . . Hover . | . . . . . . . . . . . . . . . . . . . . . . . Flight 10 | . . . . . . . . . 2 2 1 . 4 1 . . . . . . . . Utility 77 | 3 1 1 6 4 1 3 . . 1 1 1 . . 12 1 . 4 7 7 11 13 . Device 41 | . 1 1 4 1 . . . . . 1 1 . . 7 . . 2 6 4 5 8 . Storage 2 | 1 . . . . . . . . . . . . . . . . . . . 1 . . Processor 14 | 1 . . . 1 1 1 . . . . . . . 4 . . 1 . 1 3 1 . Hackware 1 | . . . . . . . . . . . . . . . . . . . . 1 . . Protection 19 | 1 . . 2 2 . 2 . . 1 . . . . 1 1 . 1 1 2 1 4 . Artifact . | . . . . . . . . . . . . . . . . . . . . . . . Weapon 71 | 2 . . 2 7 1 1 . 1 1 2 . . 2 4 3 3 . 8 5 18 11 . Energy Gun 37 | 1 . . 1 1 . . . . . 2 . . 1 2 2 3 . 4 1 12 7 . Energy Cannon 10 | . . . . 4 . 1 . . . . . . . . . . . 1 1 1 2 . Ballistic Gun 10 | 1 . . 1 . . . . . . . . . 1 1 . . . . 1 4 1 . Ballistic Cannon 7 | . . . . 2 1 . . . . . . . . 1 . . . 1 2 . . . Launcher 7 | . . . . . . . . 1 1 . . . . . 1 . . 2 . 1 1 . Special Weapon . | . . . . . . . . . . . . . . . . . . . . . . . Impact Weapon . | . . . . . . . . . . . . . . . . . . . . . . . Slashing Weapon . | . . . . . . . . . . . . . . . . . . . . . . . Piercing Weapon . | . . . . . . . . . . . . . . . . . . . . . . . Special Melee Weapon . | . . . . . . . . . . . . . . . . . . . . . . . Unidentified Prototypes 29 | . . 1 . 1 . . . . . 2 . . . 1 3 . 3 1 1 7 9 . Parts Lost 55 | . . . . . . . 1 . 2 . 1 . . 8 . . 4 2 6 12 19 . Power 8 | . . . . . . . 1 . . . . . . 1 . . 1 . 1 2 2 . Propulsion 6 | . . . . . . . . . 1 . . . . 1 . . 1 . . . 3 . Utility 21 | . . . . . . . . . . . 1 . . 3 . . 1 1 3 4 8 . Weapon 20 | . . . . . . . . . 1 . . . . 3 . . 1 1 2 6 6 . Highest Loss Streak 8 | . . . . . . . 1 . 2 . 1 . . 8 . . 4 1 2 4 7 . Average Slot Usage (%) 83 | . 100 100 96 97 100 99 94 91 74 58 68 68 60 67 84 86 87 84 84 83 77 6 Engine 1 | . 12 12 8 8 7 7 2 . . . . . . 1 . . . . . . . . Reactor 3 | . . . . . . . . . 4 6 6 6 5 2 4 5 4 5 4 6 7 . Treads 7 | . . . . . . . . . . . . . . . 7 14 15 15 13 11 10 . Leg 7 | . 25 25 19 24 28 28 28 25 19 9 . . . . . . . . . . . 2 Flight 2 | . . . . . . . . . 2 14 25 25 16 15 5 . . . . . . . Device 15 | . 12 12 18 24 21 14 14 12 7 6 12 12 11 11 11 11 13 23 20 16 14 . Storage 2 | . 12 12 10 8 7 7 7 6 3 . . . . . . . . . . 3 3 . Processor 16 | . 12 12 10 7 14 14 14 12 12 12 12 12 11 16 27 27 24 20 18 17 15 4 Protection 6 | . . . 10 8 7 13 14 12 9 6 6 6 5 3 10 11 10 2 5 2 4 . Energy Gun 6 | . 12 12 10 4 . . . . . 1 6 6 5 5 10 11 11 9 6 10 7 . Energy Cannon 2 | . . . . 3 7 7 7 6 3 . . . . . . . . 1 4 2 2 . Ballistic Gun 2 | . 12 12 10 5 . . . . . . . . 4 4 5 5 4 . 1 4 1 . Ballistic Cannon 2 | . . . . 3 7 7 7 6 3 . . . . . . . . 1 8 1 . . Launcher 1 | . . . . . . . . 5 4 . . . . . . . . 4 . . 3 . Naked Turns . | . . . . . . . . . . . . . . . . . . . . . . . Heaviest Build 110 | 14 15 15 22 29 29 40 40 43 92 26 27 26 31 42 48 50 50 70 87 95 110 . Greatest Support 195 | 20 20 20 20 37 58 63 63 71 71 34 29 29 49 49 160 188 190 195 195 195 195 58 Greatest Overweight (x) 4 | 4 . . 1 . . . . 1 2 . . . . . . . 1 . . . 4 . Average Overweight (x) . | . . . . . . . . . . . . . . . . . . . . . . . Largest Inventory Capacity 8 | 8 8 8 8 8 8 8 8 8 8 4 4 4 4 4 4 4 4 4 4 4 4 4 Average Capacity 5 | 7 8 8 8 8 8 8 8 8 6 4 4 4 4 4 4 4 4 4 4 4 4 4 Most Carried 8 | 7 6 8 8 8 7 8 7 8 8 4 4 4 4 4 4 4 4 4 4 4 4 . Average Carried 4 | 3 6 7 6 7 6 7 7 7 5 3 3 4 3 2 3 3 3 2 3 2 3 . Final Capacity 8 | 8 8 8 8 8 8 8 8 8 4 4 4 4 4 4 4 4 4 4 4 4 4 4 Final Carried 8 | 7 6 8 7 8 7 7 7 8 3 3 4 4 4 2 4 3 4 4 3 4 . . Class Distribution -------------------- 37% | Hacker-Mutant 33% | Scavenger-Gunner 18% | Hacker-Gunner 4% | Hacker-Sprinter Dominant Class ---------------- Hacker-Mutant | -10/Materials Hacker-Mutant | -10/Mines Hacker-Mutant | -9/Materials Hacker-Mutant | -8/Materials Hacker-Skirmisher | -7/Factory Hacker-Mutant | -7/Lower Caves Hacker-Mutant | -7/Lower Caves Hacker-Mutant | -6/Factory Hacker-Mutant | -6/Waste Hacker-Mutant | -6/Factory Hacker-Sprinter | -6/Lower Caves Hacker-Sprinter | -6/Lower Caves Hacker-Mutant | -5/Factory Hacker-Mutant | -5/Extension Scavenger-Gunner | -5/Cetus Scavenger-Gunner | -5/Archives Scavenger-Gunner | -5/Hub_04(d) Scavenger-Gunner | -4/Factory Hacker-Gunner | -3/Research Scavenger-Gunner | -2/Research Hacker-Gunner | -2/Testing Hacker-Mutant | -2/Section 7 Resources | -11 -10 -10 -9 -8 -7 -7 -7 -6 -6 -6 -6 -6 -5 -5 -5 -5 -5 -4 -3 -2 -2 -2 ----------- Run | Scr Mat Min Mat Mat Fac Low Low Fac Was Fac Low Low Fac Ext Cet Arc Hub Fac Res Res Tes Sec Matter Collected 4752 | 152 63 28 191 179 131 70 44 64 4 55 252 . . 485 190 10 137 401 631 1092 573 . Remotely . | . . . . . . . . . . . . . . . . . . . . . . . Salvage Created 10049 | . . . 416 272 . . 95 130 . . 116 . . 507 124 . 480 1013 1665 3567 1664 . Parts 436 | . . . 27 13 . . 2 6 . . 2 . . 17 8 . 16 38 53 174 80 . Haulers Intercepted 4 | . . . 1 2 . . . . . . . . . . . . . . . 1 . . Recyclers Shooed 4 | . . . . . . . . . . . . . . 1 . . . 3 . . . . Parts Field Recycled . | . . . . . . . . . . . . . . . . . . . . . . . Retrieved Matter . | . . . . . . . . . . . . . . . . . . . . . . . Parts Self-Destructed . | . . . . . . . . . . . . . . . . . . . . . . . Prevented . | . . . . . . . . . . . . . . . . . . . . . . . Kills | -11 -10 -10 -9 -8 -7 -7 -7 -6 -6 -6 -6 -6 -5 -5 -5 -5 -5 -4 -3 -2 -2 -2 ------- Run | Scr Mat Min Mat Mat Fac Low Low Fac Was Fac Low Low Fac Ext Cet Arc Hub Fac Res Res Tes Sec Combat Hostiles Destroyed 141 | . . . 9 3 . . 3 4 . . 2 . . 6 4 . 2 16 28 40 24 . Guns 68 | . . . 9 . . . . . . . 2 . . 6 3 . 2 8 7 20 11 . Cannons 48 | . . . . 3 . . 3 4 . . . . . . . . . 6 21 7 4 . AOE 16 | . . . . . . . . . . . . . . . 1 . . 2 . 5 8 . Classes Destroyed 16 | . . . 4 1 . . . 1 . . . . . 3 1 . 1 1 . 1 3 . Worker 5 | . . . . . . . . . . . . . . . . . 2 . . 2 1 . Builder 9 | . . . . 1 . . . . . . . . . 1 . . . 1 . 6 . . Hauler 4 | . . . 1 2 . . . . . . . . . . . . . . . 1 . . Recycler 2 | . . . . . . . . . . . . . . . . . . 1 . 1 . . Mechanic 1 | . . . . . . . . . . . . . . . . . . . . . 1 . Watcher 3 | . . . . . . . . . . . . . . . . . . . . 2 1 . Swarmer 14 | . . . 3 . . . 2 2 . . . . . . 3 . . . . 4 . . Grunt 46 | . . . 2 3 . . . . . . 1 . . 1 . . . 5 12 11 11 . Brawler 1 | . . . . . . . . . . . . . . 1 . . . . . . . . Researcher 2 | . . . . . . . . . . . . . . . . . . . . . 2 . Sentry 18 | . . . 4 . . . 1 1 . . 1 . . 2 . . 1 2 4 2 . . Hunter 34 | . . . . . . . . . . . . . . . 1 . 1 6 9 12 5 . Programmer 25 | . . . . . . . . 1 . . . . . 1 . . . 3 3 10 7 . Q-Series 1 | . . . . . . . . . . . . . . . . . . . . . 1 . Behemoth 2 | . . . . . . . . . . . . . . 1 . . . . . 1 . . Enhanced Grunt 3 | . . . . . . . . . . . . . . . . . 3 . . . . . Butcher 1 | . . . . . . . . . . . . . . 1 . . . . . . . . Guerrilla 1 | . . . . . . . . . . . . . . . . . 1 . . . . . Best Kill Streak 7 | . . . 3 2 . . 3 2 . . 1 . . 3 2 . 1 4 4 7 7 . Combat Bots Only 7 | . . . 3 2 . . 3 2 . . 1 . . 2 2 . 1 4 4 7 6 . Max Kills in Single Turn 6 | . . . 1 2 . . 1 1 . . 1 . . 2 1 . 1 2 2 6 2 . Gunslinging 1 | . . . . . . . . . . . . . . . . . . . . 1 . . Exploded 3 | . . . . . . . . . . . . . . . 1 . . 2 . 3 2 . Melee . | . . . . . . . . . . . . . . . . . . . . . . . Uniques/NPCs Destroyed . | . . . . . . . . . . . . . . . . . . . . . . . Combat | -11 -10 -10 -9 -8 -7 -7 -7 -6 -6 -6 -6 -6 -5 -5 -5 -5 -5 -4 -3 -2 -2 -2 -------- Run | Scr Mat Min Mat Mat Fac Low Low Fac Was Fac Low Low Fac Ext Cet Arc Hub Fac Res Res Tes Sec Damage Taken 16352 | . . . 209 184 . . 72 116 107 10 149 9 . 940 123 . 1910 791 2345 3580 5524 283 Core 2094 | . . . 48 23 . . . 13 . . 50 . . 211 19 . 114 60 101 205 1072 178 Absorbed by Shields 185 | . . . 32 . . . 15 . . . . . . 47 19 . . . 72 . . . Reduced by Siege Mode 22 | . . . . . . . . . . . . . . . . . . . . 22 . . Core Remaining (%) 91 | 100 . 100 88 95 . . 100 . . . . 92 . . . . 65 94 92 . . . Volleys Fired 429 | . . . 21 17 . . 4 6 8 1 13 . . 43 12 . 9 43 56 105 91 . Largest 5 | . . . 2 2 . . 2 2 3 1 1 . . 3 3 . 3 4 5 5 5 . Hottest 415 | . . . 65 116 . . 128 128 167 69 69 . . 159 147 . 221 351 415 368 392 . Shots Fired 1099 | . . . 36 34 . . 8 12 17 1 13 1 . 88 18 . 27 115 203 321 205 . Gun 706 | . . . 36 14 . . . . . 1 13 1 . 75 15 . 27 76 84 226 138 . Cannon 353 | . . . . 20 . . 8 12 14 . . . . 13 . . . 28 119 87 52 . Launcher 40 | . . . . . . . . . 3 . . . . . 3 . . 11 . 8 15 . Special . | . . . . . . . . . . . . . . . . . . . . . . . Kinetic 353 | . . . 21 17 . . 4 6 8 . . . . 55 12 . 9 14 89 94 24 . Thermal 464 | . . . . 10 . . 4 6 6 1 13 1 . 27 3 . 18 90 107 55 123 . Explosive 32 | . . . . . . . . . 3 . . . . . 3 . . 11 . . 15 . Electromagnetic 250 | . . . 15 7 . . . . . . . . . 6 . . . . 7 172 43 . Robot Hit Streak 56 | . . . 38 41 . . 21 25 16 . 10 11 . 43 13 . 37 56 43 43 38 . Robot Miss Streak 2 | . . . 2 2 . . . 1 1 1 2 . . 1 . . . 1 1 2 2 . Penetration Max 3 | . . . . 1 . . . . . . . . . 1 . . 1 . 1 1 3 . Secondary Targets 10 | . . . . . . . . . . . . . . 3 . . . 1 . 6 . . Max Gunslinging Chain 1 | . . . . . . . . . . . . . . 1 . . . 1 . 1 . . Shots Hit Robots 917 | . . . 30 28 . . 7 10 11 . 11 1 . 79 12 . 24 97 166 274 167 . Core Hits 459 | . . . 19 12 . . 3 5 2 . 5 . . 20 10 . 9 53 74 146 101 . Critical Hits 79 | . . . . 4 . . 1 . 2 . . . . 4 1 . 2 5 23 14 23 . Critical Kills 27 | . . . . 1 . . 1 . . . . . . . . . 1 1 12 6 5 . Critical Parts Destroyed 36 | . . . . 3 . . . . . . . . . 3 . . . 4 8 3 15 . Melee Attacks . | . . . . . . . . . . . . . . . . . . . . . . . Impact . | . . . . . . . . . . . . . . . . . . . . . . . Slashing . | . . . . . . . . . . . . . . . . . . . . . . . Piercing . | . . . . . . . . . . . . . . . . . . . . . . . Sneak Attacks . | . . . . . . . . . . . . . . . . . . . . . . . Combat Hostiles . | . . . . . . . . . . . . . . . . . . . . . . . Follow-up Attacks . | . . . . . . . . . . . . . . . . . . . . . . . Damage Inflicted 30675 | . . . 470 546 . . 181 275 488 . 276 24 . 2034 346 . 1359 3232 5359 8439 7646 . Guns 14707 | . . . 433 178 . . . . . . 276 24 . 1710 239 . 663 1765 1923 4683 2813 . Cannons 9449 | . . . . 368 . . 181 275 253 . . . . 324 . . . 663 3358 1682 2345 . Explosions 6375 | . . . 37 . . . . . 235 . . . . . 107 . 685 804 77 2074 2356 . Melee . | . . . . . . . . . . . . . . . . . . . . . . . Ramming 144 | . . . . . . . . . . . . . . . . . 11 . 1 . 132 . Kinetic 7223 | . . . 205 261 . . 79 137 149 . . . . 1432 214 . 207 108 1875 2152 404 . Thermal 12822 | . . . 37 184 . . 102 138 104 . 276 24 . 537 25 . 456 2320 3145 1699 3775 . Explosive 4775 | . . . . . . . . . 235 . . . . . 107 . . 804 77 1196 2356 . Electromagnetic 5711 | . . . 228 101 . . . . . . . . . 65 . . 685 . 261 3392 979 . Impact . | . . . . . . . . . . . . . . . . . . . . . . . Slashing . | . . . . . . . . . . . . . . . . . . . . . . . Piercing . | . . . . . . . . . . . . . . . . . . . . . . . Highest Corruption 40 | . . . . . . . . . 11 11 11 11 . . . . 16 1 6 27 38 40 Average Corruption 15 | . . . . . . . . . 7 11 11 11 . . . . 3 1 5 21 30 39 Corruption Purged . | . . . . . . . . . . . . . . . . . . . . . . . Effects 346 | . . . . . . . . . 10 13 17 2 . . . . 3 1 18 120 156 6 Message Errors 39 | . . . . . . . . . 1 1 3 1 . . . . 1 1 6 11 14 . Matter Fused 31 | . . . . . . . . . 3 4 . . . . . . 1 . 1 9 12 1 Heat Flow Errors 21 | . . . . . . . . . 2 1 2 . . . . . . . 2 5 9 . Energy Discharges 19 | . . . . . . . . . 1 1 3 . . . . . . . 1 7 5 1 Parts Rejected 3 | . . . . . . . . . . . . . . . . . . . . 2 1 . Data Loss (minor) 19 | . . . . . . . . . . . 2 . . . . . . . 2 6 9 . Data Loss (major) 10 | . . . . . . . . . . . . . . . . . . . 1 3 6 . Misfires 4 | . . . . . . . . . 1 . . 1 . . . . . . . 1 1 . Alerts 3 | . . . . . . . . . . . . . . . . . . . . . 3 . Misdirections 49 | . . . . . . . . . . 6 4 . . . . . 1 . . 9 25 4 Targeting Errors 126 | . . . . . . . . . 1 . 3 . . . . . . . 3 57 62 . Weapon Failures 22 | . . . . . . . . . 1 . . . . . . . . . 2 10 9 . Overload Shots . | . . . . . . . . . . . . . . . . . . . . . . . Overflow Damage 751 | . . . . . . . . . . . . . . . . . 91 44 152 159 305 . Projectiles 363 | . . . . . . . . . . . . . . . . . . 25 149 . 189 . Explosions 388 | . . . . . . . . . . . . . . . . . 91 19 3 159 116 . Melee . | . . . . . . . . . . . . . . . . . . . . . . . Knockbacks 15 | . . . . . . . . 1 . . . . . . . . . 2 12 . . . Impact . | . . . . . . . . . . . . . . . . . . . . . . . Kinetic 15 | . . . . . . . . 1 . . . . . . . . . 2 12 . . . Secondary . | . . . . . . . . . . . . . . . . . . . . . . . Self-Inflicted Damage 212 | . . . 15 . . . . . . . . . . . . . 69 . . 110 18 . Shots 8 | . . . 1 . . . . . . . . . . . . . 1 . . 4 2 . Rammed 43 | . . . . . . . . . . . . . . . . . 2 . 1 . 40 . Targets Rammed 44 | . . . . . . . . . . . . . . . . . 3 . 1 . 40 . Kicked . | . . . . . . . . . . . . . . . . . . . . . . . Crushed 1 | . . . . . . . . . . . . . . . . . 1 . . . . . Highest Temperature 541 | . . . 32 492 . . 120 120 541 106 245 30 . 288 38 . 112 416 509 245 307 . Average Temperature 117 | . . . 13 212 . . 62 56 236 44 83 18 . 90 19 . 55 130 157 90 106 . Received Heat Transfer 3238 | . . . 83 144 . . 12 30 . . 69 . . 209 27 . 225 93 582 315 1431 18 Effects 25 | . . . . 5 . . . . 9 . . . . 2 . . . 3 6 . . . Shutdowns 8 | . . . . 2 . . . . 2 . . . . . . . . 1 3 . . . Energy Bleed 6 | . . . . 1 . . . . . . . . . 1 . . . 2 2 . . . Interference 2 | . . . . . . . . . 1 . . . . 1 . . . . . . . . Matter Decay 4 | . . . . . . . . . 3 . . . . . . . . . 1 . . . Short Circuit 2 | . . . . 1 . . . . 1 . . . . . . . . . . . . . Damage (minor) 1 | . . . . . . . . . 1 . . . . . . . . . . . . . Damage (major) 2 | . . . . 1 . . . . 1 . . . . . . . . . . . . . Siege Activations 1 | . . . . . . . . . . . . . . . . . . . . 1 . . Total Turns 13 | . . . . . . . . . . . . . . . . . . . . 13 . . Longest Duration 13 | . . . . . . . . . . . . . . . . . . . . 13 . . Robots Corrupted 13 | . . . . . . . . . . . . . . . . . 4 . . 8 1 . Combat Hostiles 9 | . . . . . . . . . . . . . . . . . . . . 8 1 . Parts Fried 32 | . . . . 1 . . . . . . . . . . . . 9 . . 21 1 . Impact Corruptions . | . . . . . . . . . . . . . . . . . . . . . . . Robots Melted . | . . . . . . . . . . . . . . . . . . . . . . . Combat Hostiles . | . . . . . . . . . . . . . . . . . . . . . . . Parts Melted 20 | . . . . . . . . 1 . . . . . 2 . . . 7 2 3 5 . Heat Transferred 14251 | . . . 50 333 . . 200 250 200 . 444 37 . 851 37 . 556 2798 3153 1915 3427 . Parts Sabotaged . | . . . . . . . . . . . . . . . . . . . . . . . Parts Stolen . | . . . . . . . . . . . . . . . . . . . . . . . Parts Stripped . | . . . . . . . . . . . . . . . . . . . . . . . Power Chain Reactions 6 | . . . 1 . . . . . . . . . . . . . . . . 5 . . Missiles Intercepted . | . . . . . . . . . . . . . . . . . . . . . . . Alert | -11 -10 -10 -9 -8 -7 -7 -7 -6 -6 -6 -6 -6 -5 -5 -5 -5 -5 -4 -3 -2 -2 -2 ------- Run | Scr Mat Min Mat Mat Fac Low Low Fac Was Fac Low Low Fac Ext Cet Arc Hub Fac Res Res Tes Sec Peak Influence 880 | . . . 322 205 82 . . 211 50 164 . . 107 441 598 184 880 501 690 596 809 208 Initial 238 | . . . . 97 67 . . 28 50 5 . . 105 38 65 141 43 188 58 238 124 193 Average 264 | . . . 125 143 67 . . 90 28 49 . . 106 164 463 179 412 334 209 339 440 196 Maximum Alert Level 3 | . . . 1 1 . . . 1 . . . . . 2 2 . 3 2 2 2 3 1 Low Security (%) 45 | 100 100 100 68 83 100 . . 85 100 100 . . 100 75 9 100 31 8 45 14 22 73 Level 1 28 | . . . 31 16 . . . 14 . . . . . 20 24 . 10 56 42 63 9 26 Level 2 24 | . . . . . . . . . . . . . . 4 65 . 50 34 11 22 65 . Level 3 . | . . . . . . . . . . . . . . . . . 7 . . . 2 . Level 4 . | . . . . . . . . . . . . . . . . . . . . . . . Level 5 . | . . . . . . . . . . . . . . . . . . . . . . . High Security . | . . . . . . . . . . . . . . . . . . . . . . . Max Security . | . . . . . . . . . . . . . . . . . . . . . . . Squads Dispatched 48 | . . . 2 1 . . . 2 . 1 . . . . 2 . 6 4 10 9 11 . Investigation 17 | . . . . . . . . 1 . . . . . . 2 . 3 . 5 3 3 . Extermination 11 | . . . . . . . . 1 . . . . . . . . 1 1 2 3 3 . Reinforcement 19 | . . . 2 1 . . . . . 1 . . . . . . 2 3 3 3 4 . Assault 1 | . . . . . . . . . . . . . . . . . . . . . 1 . Garrison . | . . . . . . . . . . . . . . . . . . . . . . . Intercept . | . . . . . . . . . . . . . . . . . . . . . . . Construction Impeded 5 | . . . . . . . . . . . . . . . . . 1 1 1 1 1 . Haulers Reinforced 2 | . . . . . . . . . . . . . . . . . 1 . . 1 . . Stealth | -11 -10 -10 -9 -8 -7 -7 -7 -6 -6 -6 -6 -6 -5 -5 -5 -5 -5 -4 -3 -2 -2 -2 --------- Run | Scr Mat Min Mat Mat Fac Low Low Fac Was Fac Low Low Fac Ext Cet Arc Hub Fac Res Res Tes Sec Distress Signals 9 | . . . . . . . . . . 1 . . . 1 1 . 1 . 4 1 . . Communications Jammed . | . . . . . . . . . . . . . . . . . . . . . . . Distress Signals . | . . . . . . . . . . . . . . . . . . . . . . . Times Spotted 332 | . . . 11 8 1 . 3 4 5 4 9 3 . 23 23 3 41 21 47 60 62 4 Peak Tracking Total 19 | . . . 4 3 1 . 2 3 4 2 7 3 . 6 6 2 19 3 10 6 13 5 Tactical Retreats 23 | . . . 1 . . . . . . . . . . 4 . . . 1 2 4 11 . Traps | -11 -10 -10 -9 -8 -7 -7 -7 -6 -6 -6 -6 -6 -5 -5 -5 -5 -5 -4 -3 -2 -2 -2 ------- Run | Scr Mat Min Mat Mat Fac Low Low Fac Was Fac Low Low Fac Ext Cet Arc Hub Fac Res Res Tes Sec Traps Triggered 13 | . . . 2 3 . . . 1 . . . . . . . . 1 1 1 3 . 1 Indirectly 1 | . . . . . . . . . . . . . . . . . . . . 1 . . Trap Hack Attempts . | . . . . . . . . . . . . . . . . . . . . . . . Triggered . | . . . . . . . . . . . . . . . . . . . . . . . Disarmed . | . . . . . . . . . . . . . . . . . . . . . . . Reprogrammed 4 | . . . . . . . . . . . . . . . . . 4 . . . . . Reused 1 | . . . . . . . . . . . . . . . . . 1 . . . . . Traps Extracted . | . . . . . . . . . . . . . . . . . . . . . . . Installed . | . . . . . . . . . . . . . . . . . . . . . . . Triggered 4 | . . . . . . 1 2 . . . . . . . . . 1 . . . . . Machines | -11 -10 -10 -9 -8 -7 -7 -7 -6 -6 -6 -6 -6 -5 -5 -5 -5 -5 -4 -3 -2 -2 -2 ---------- Run | Scr Mat Min Mat Mat Fac Low Low Fac Was Fac Low Low Fac Ext Cet Arc Hub Fac Res Res Tes Sec Machines Disabled 32 | . . . . . . . . . . 3 1 . . 3 2 . 8 2 1 3 9 . Max in Single Turn 5 | . . . . . . . . . . . . . . 1 1 . 5 1 1 1 3 . Garrison Access 3 | . . . . . . . . . . . . . . . . . 1 1 . . 1 . Network Hub 1 | . . . . . . . . . . . . . . . . . 1 . . . . . Machines Sabotaged . | . . . . . . . . . . . . . . . . . . . . . . . Garrisons Compromised . | . . . . . . . . . . . . . . . . . . . . . . . Overloaded Fab Kills . | . . . . . . . . . . . . . . . . . . . . . . . Fab Network Shutdowns 1 | . . . . . . . . . . . . . . . . . . . 1 . . . Hacking | -11 -10 -10 -9 -8 -7 -7 -7 -6 -6 -6 -6 -6 -5 -5 -5 -5 -5 -4 -3 -2 -2 -2 --------- Run | Scr Mat Min Mat Mat Fac Low Low Fac Was Fac Low Low Fac Ext Cet Arc Hub Fac Res Res Tes Sec Machines Accessed 36 | . 1 . 1 1 . . . 2 . . . . 1 7 3 . 4 3 5 3 5 . Terminals 25 | . . . 1 1 . . . 1 . . . . 1 7 3 . 3 . 2 3 3 . Fabricators 3 | . . . . . . . . 1 . . . . . . . . . . 2 . . . Repair Stations 2 | . . . . . . . . . . . . . . . . . . 1 . . 1 . Recycling Units 2 | . 1 . . . . . . . . . . . . . . . . 1 . . . . Scanalyzers 1 | . . . . . . . . . . . . . . . . . . . 1 . . . Garrison Access 3 | . . . . . . . . . . . . . . . . . 1 1 . . 1 . Total Hacks 97 | . 1 . 1 3 . . . 7 . . . . 1 9 7 . 10 5 17 14 22 . Successful 60 | . 1 . 1 2 . . . 5 . . . . 1 7 5 . 6 4 10 7 11 . Failed 37 | . . . . 1 . . . 2 . . . . . 2 2 . 4 1 7 7 11 . Catastrophic 2 | . . . . . . . . . . . . . . . . . . . . . 2 . Database Lockouts . | . . . . . . . . . . . . . . . . . . . . . . . Manual 4 | . . . . . . . . . . . . . . . 2 1 1 . . . . . Terminals 72 | . . . 1 3 . . . 5 . . . . 1 9 7 . 9 . 8 14 15 . Fabricators 9 | . . . . . . . . 2 . . . . . . . . . . 7 . . . Repair Stations 7 | . . . . . . . . . . . . . . . . . . 2 . . 5 . Recycling Units 3 | . 1 . . . . . . . . . . . . . . . . 2 . . . . Scanalyzers 2 | . . . . . . . . . . . . . . . . . . . 2 . . . Garrison Access 4 | . . . . . . . . . . . . . . . . . 1 1 . . 2 . Terminal Hacks 43 | . . . 1 2 . . . 3 . . . . 1 7 5 . 5 . 4 7 8 . Record 14 | . . . . . . . . . . . . . . . 4 . 3 . 2 2 3 . Robot Schematic 2 | . . . . . . . . 1 . . . . . . . . . . . . 1 . Robot Analysis 1 | . . . . . . . . . . . . . . . . . 1 . . . . . Prototype ID Bank 6 | . . . . . . . . 1 . . . . . 1 . . . . 2 1 1 . Open Door 8 | . . . . . . . . . . . . . 1 6 1 . . . . . . . Branch Access Points 2 | . . . . . . . . 1 . . . . . . . . . . . 1 . . Emergency Access Points 1 | . . . . 1 . . . . . . . . . . . . . . . . . . Unreport Threat 3 | . . . . . . . . . . . . . . . . . . . . 3 . . Reprogram Traps 1 | . . . . . . . . . . . . . . . . . 1 . . . . . Recall Investigation 1 | . . . . . . . . . . . . . . . . . . . . . 1 . Recall Assault 1 | . . . . . . . . . . . . . . . . . . . . . 1 . Registered Components 1 | . . . . 1 . . . . . . . . . . . . . . . . . . Zone Layout 2 | . . . 1 . . . . . . . . . . . . . . . . . 1 . Fabricator Hacks 6 | . . . . . . . . 2 . . . . . . . . . . 4 . . . Load Schematic 2 | . . . . . . . . 1 . . . . . . . . . . 1 . . . Build 4 | . . . . . . . . 1 . . . . . . . . . . 3 . . . Repair Station Hacks 4 | . . . . . . . . . . . . . . . . . . 2 . . 2 . Scan Component 2 | . . . . . . . . . . . . . . . . . . 1 . . 1 . Repair 2 | . . . . . . . . . . . . . . . . . . 1 . . 1 . Recycling Unit Hacks 2 | . 1 . . . . . . . . . . . . . . . . 1 . . . . Report Inventory 2 | . 1 . . . . . . . . . . . . . . . . 1 . . . . Scanalyzer 2 | . . . . . . . . . . . . . . . . . . . 2 . . . Insert Component 1 | . . . . . . . . . . . . . . . . . . . 1 . . . Analyze 1 | . . . . . . . . . . . . . . . . . . . 1 . . . Garrison Access Hacks 3 | . . . . . . . . . . . . . . . . . 1 1 . . 1 . Seal Access 3 | . . . . . . . . . . . . . . . . . 1 1 . . 1 . Unauthorized Hacks . | . . . . . . . . . . . . . . . . . . . . . . . Terminals . | . . . . . . . . . . . . . . . . . . . . . . . Fabricators . | . . . . . . . . . . . . . . . . . . . . . . . Repair Stations . | . . . . . . . . . . . . . . . . . . . . . . . Recycling Units . | . . . . . . . . . . . . . . . . . . . . . . . Scanalyzers . | . . . . . . . . . . . . . . . . . . . . . . . Garrison Access . | . . . . . . . . . . . . . . . . . . . . . . . Data Cores Recovered . | . . . . . . . . . . . . . . . . . . . . . . . Used . | . . . . . . . . . . . . . . . . . . . . . . . Hacking Detections 25 | . . . . 1 . . . 2 . . . . . 3 2 . 3 2 5 3 4 . Full Trace Events 15 | . . . . . . . . 1 . . . . . . 2 . 3 . 4 2 3 . Feedback Events 4 | . . . . . . . . . . . . . . . . . 2 . 1 . 1 . Corruption 4 | . . . . . . . . . . . . . . . . . 2 . 1 . 1 . Feedback Blocked . | . . . . . . . . . . . . . . . . . . . . . . . Robot Schematics Acquired 2 | . . . . . . . . 1 . . . . . . . . . . . . 1 . Robots Built 10 | . . . . . . . . 2 . . . . . . . . . . 8 . . . Matter 1272 | . . . . . . . . 285 . . . . . . . . . . 987 . . . Time 224 | . . . . . . . . 50 . . . . . . . . . . 174 . . . Total Robot Build Rating 62 | . . . . . . . . 10 . . . . . . . . . . 52 . . . Part Schematics Acquired 1 | . . . . . . . . . . . . . . . . . . . 1 . . . Parts Built . | . . . . . . . . . . . . . . . . . . . . . . . Matter . | . . . . . . . . . . . . . . . . . . . . . . . Time . | . . . . . . . . . . . . . . . . . . . . . . . Total Part Build Rating . | . . . . . . . . . . . . . . . . . . . . . . . Parts Repaired 2 | . . . . . . . . . . . . . . . . . . 1 . . 1 . Time 65 | . . . . . . . . . . . . . . . . . . 34 . . 31 . Parts Recycled . | . . . . . . . . . . . . . . . . . . . . . . . Recycled Matter . | . . . . . . . . . . . . . . . . . . . . . . . Retrieved Matter . | . . . . . . . . . . . . . . . . . . . . . . . Retrieved Components . | . . . . . . . . . . . . . . . . . . . . . . . Parts Scanalyzed 1 | . . . . . . . . . . . . . . . . . . . 1 . . . Part Schematics Acquired 1 | . . . . . . . . . . . . . . . . . . . 1 . . . Parts Damaged . | . . . . . . . . . . . . . . . . . . . . . . . Bothacking | -11 -10 -10 -9 -8 -7 -7 -7 -6 -6 -6 -6 -6 -5 -5 -5 -5 -5 -4 -3 -2 -2 -2 ------------ Run | Scr Mat Min Mat Mat Fac Low Low Fac Was Fac Low Low Fac Ext Cet Arc Hub Fac Res Res Tes Sec Used RIF Installer . | . . . . . . . . . . . . . . . . . . . . . . . Robots Hacked . | . . . . . . . . . . . . . . . . . . . . . . . Non-combat . | . . . . . . . . . . . . . . . . . . . . . . . Combat . | . . . . . . . . . . . . . . . . . . . . . . . Robot Hacks Applied . | . . . . . . . . . . . . . . . . . . . . . . . Relay Couplers Released 10 | . . . . . . . . . . . . . . . . . . . 3 3 4 . Programmers 10 | . . . . . . . . . . . . . . . . . . . 3 3 4 . Robots Rewired 4 | . . . . . . . . . . . 2 . . . . . . . . 1 1 . Allies Hacked 1 | . . . . . . . . . . . . . . . . . . . . . 1 . Hacks Repelled . | . . . . . . . . . . . . . . . . . . . . . . . Allies | -11 -10 -10 -9 -8 -7 -7 -7 -6 -6 -6 -6 -6 -5 -5 -5 -5 -5 -4 -3 -2 -2 -2 -------- Run | Scr Mat Min Mat Mat Fac Low Low Fac Was Fac Low Low Fac Ext Cet Arc Hub Fac Res Res Tes Sec Total Allies 46 | . . . . . . . . 2 19 . 2 . . 8 5 . . . 8 1 1 . Largest Group 19 | . . . . . . . . 2 19 16 10 10 10 10 11 11 6 . 4 1 1 . Highest-Rated Group 750 | . . . . . . . . 82 714 612 346 346 346 381 750 747 507 . 192 58 54 . Highest-Rated Ally 156 | . . . . . . . . 41 50 50 50 44 44 156 156 136 94 . 48 58 54 . Total Orders . | . . . . . . . . . . . . . . . . . . . . . . . Ally Attacks 437 | . . . . . . . . . 60 27 12 5 . 66 129 27 65 . 42 3 1 . Total Damage 13934 | . . . . . . . . . 3453 899 579 85 . 1789 2613 635 2316 . 1459 79 27 . Kills 88 | . . . . . . . . . 8 7 8 1 . 11 25 4 17 . 7 . . . Allies Corrupted 4 | . . . . . . . . . . . . . . . . . 3 . . . 1 . Allies Melted . | . . . . . . . . . . . . . . . . . . . . . . . Intel | -11 -10 -10 -9 -8 -7 -7 -7 -6 -6 -6 -6 -6 -5 -5 -5 -5 -5 -4 -3 -2 -2 -2 ------- Run | Scr Mat Min Mat Mat Fac Low Low Fac Was Fac Low Low Fac Ext Cet Arc Hub Fac Res Res Tes Sec Robot Analysis Total 1 | . . . . . . . . . . . . . . . . . 1 . . . . . Derelict Logs Recovered 5 | . . . . . . 2 1 . . . 2 . . . . . . . . . . . Drone Launches . | . . . . . . . . . . . . . . . . . . . . . . . Drone Recoveries . | . . . . . . . . . . . . . . . . . . . . . . . Exploration | -11 -10 -10 -9 -8 -7 -7 -7 -6 -6 -6 -6 -6 -5 -5 -5 -5 -5 -4 -3 -2 -2 -2 ------------- Run | Scr Mat Min Mat Mat Fac Low Low Fac Was Fac Low Low Fac Ext Cet Arc Hub Fac Res Res Tes Sec Turns Passed 10044 | 106 78 72 392 312 119 931 148 388 284 267 373 29 150 469 538 256 435 822 1354 1251 1236 34 Spaces Moved 6073 | 56 65 46 181 168 71 656 85 253 174 295 481 13 201 449 251 156 237 384 601 563 631 56 Core 192 | 13 . . . . . . . . . . . . . . . . . . . . 129 50 Treads 2497 | . . . . . . . . . . . . . . . 59 156 234 384 601 563 500 . Legs 1882 | 43 65 46 181 168 71 656 85 253 174 129 . . . . . . 3 . . . 2 6 Wheels . | . . . . . . . . . . . . . . . . . . . . . . . Hover . | . . . . . . . . . . . . . . . . . . . . . . . Flight 1502 | . . . . . . . . . . 166 481 13 201 449 192 . . . . . . . Fastest Speed 28 | 50 120 120 120 120 122 122 122 122 122 31 31 31 28 34 34 160 120 160 160 146 50 50 Average Speed 113 | 133 120 120 133 122 122 122 124 122 133 79 31 31 33 34 63 160 160 160 163 150 129 57 Slowest Speed 250 | 250 120 120 150 125 122 122 125 155 185 130 31 31 34 34 160 160 163 160 166 166 250 120 Overloaded Moves . | . . . . . . . . . . . . . . . . . . . . . . . Propulsion Burnouts . | . . . . . . . . . . . . . . . . . . . . . . . Robots Hopped 6 | . . . . . . . . . . . 1 . . 4 1 . . . . . . . Cave-ins Triggered . | . . . . . . . . . . . . . . . . . . . . . . . Exploration Rate (%) 32 | 5 18 25 24 19 1 86 17 9 87 9 64 6 5 56 81 90 46 10 16 14 58 6 Regions Visited 22 Branch Regions 11 Pre-discovered Areas . | . . . . . . . . . . . . . . . . . . . . . . . Known Exits Taken 20 | 1 1 1 1 1 1 1 1 . . 1 1 1 1 1 1 1 1 1 1 1 1 . Unknown Exits Taken . | . . . . . . . . . . . . . . . . . . . . . . . Scrap Searched 6 | . . 1 . . . 2 . . . . 3 . . . . . . . . . . . Spaces Dug . | . . . . . . . . . . . . . . . . . . . . . . . Terrain Destroyed 543 | . . . 6 5 . . . 1 36 . . . . 2 3 . 168 31 43 45 203 . Melee . | . . . . . . . . . . . . . . . . . . . . . . . Projectile 51 | . . . . 5 . . . 1 2 . . . . 2 . . 4 6 17 5 9 . AOE 492 | . . . 6 . . . . . 34 . . . . . 3 . 164 25 26 40 194 . Terrain Rammed . | . . . . . . . . . . . . . . . . . . . . . . . Walls Destroyed . | . . . . . . . . . . . . . . . . . . . . . . . Machines Disabled . | . . . . . . . . . . . . . . . . . . . . . . . Actions | -11 -10 -10 -9 -8 -7 -7 -7 -6 -6 -6 -6 -6 -5 -5 -5 -5 -5 -4 -3 -2 -2 -2 --------- Run | Scr Mat Min Mat Mat Fac Low Low Fac Was Fac Low Low Fac Ext Cet Arc Hub Fac Res Res Tes Sec Total 8483 | 84 65 62 294 236 103 786 119 318 210 322 689 37 283 673 613 164 272 526 881 805 883 58 Wait 1561 | 14 . 14 73 29 26 117 31 54 17 16 190 25 72 160 337 2 5 73 200 70 36 . Move 6040 | 55 64 45 180 167 70 655 84 253 173 294 478 12 200 440 248 155 236 383 600 562 630 56 Hop 6 | . . . . . . . . . . . 1 . . 4 1 . . . . . . . Pick Up 14 | 6 . 2 2 1 . . . . . . . . . . 1 . . 1 . . 1 . Fast Attach 159 | 8 . . 6 10 . 4 . 2 4 5 1 . 4 16 6 1 9 14 12 31 24 2 Attach 29 | . 1 . 4 2 2 1 . . 2 . . . 1 3 . 1 . 3 2 3 4 . Detach 7 | 1 . . 1 . . . . . 1 . . . . . 1 . . 1 1 . 1 . Swap 41 | . . 1 2 4 3 1 . 2 . 2 1 . 1 1 1 2 1 1 1 10 7 . Drop 126 | . . . 5 6 2 5 . 1 5 4 . . 5 6 6 3 9 7 8 23 31 . Fire 429 | . . . 21 17 . . 4 6 8 1 13 . . 43 12 . 9 43 56 105 91 . Melee . | . . . . . . . . . . . . . . . . . . . . . . . Ram 11 | . . . . . . . . . . . . . . . . . . . . . 11 . Kick . | . . . . . . . . . . . . . . . . . . . . . . . Crush 39 | . . . . . . . . . . . . . . . . . 3 . 1 . 35 . Escape Stasis . | . . . . . . . . . . . . . . . . . . . . . . . Rewire 21 | . . . . . . 3 . . . . 5 . . . . . . . . 1 12 . Trap . | . . . . . . . . . . . . . . . . . . . . . . . Miscellaneous . | . . . . . . . . . . . . . . . . . . . . . . . Route ------- -11/Scrapyard -10/Materials -10/Mines -9/Materials -8/Materials -7/Factory -7/Lower Caves -7/Lower Caves -6/Factory (discovered 4 exits: Fac x2 / *Low x2) -6/Waste -6/Factory -6/Lower Caves -6/Lower Caves -5/Factory -5/Extension (discovered 3 exits: *Fac x2 / *Cet) -5/Cetus -5/Archives (discovered 3 exits: *Fac / *Hub x2) -5/Hub_04(d) -4/Factory -3/Research -2/Research (discovered 2 exits: *Tes x2) -2/Testing -2/Section 7 History --------- Turn | Location | Event 36 | -11/Scrapyard | Identified exit to Materials 36 | -11/Scrapyard | Discovered exit to Materials (range 14) 107 | -11/Scrapyard | Entered Materials 107 | -10/Materials | Evolved 1 slot: Utility x1 141 | -10/Materials | Identified exit to Mines 141 | -10/Materials | Discovered exit to Mines (range 15) 185 | -10/Materials | Entered Mines 200 | -10/Mines | Found a damaged Exp. Sensor Array with a note attached 202 | -10/Mines | Found Prototype Device 203 | -10/Mines | Identified Exp. Sensor Array 225 | -10/Mines | Received a Rocket Launcher from a helpful Derelict 237 | -10/Mines | Identified exit to Materials 237 | -10/Mines | Discovered exit to Materials (range 11) 257 | -10/Mines | Entered Materials 257 | -9/Materials | Evolved 2 slots: Utility x2 317 | -9/Materials | Build established: Hacker-Mutant 622 | -9/Materials | Identified exit to Materials 622 | -9/Materials | Discovered exit to Materials (range 4) 649 | -9/Materials | Entered another Materials area 649 | -8/Materials | Evolved 2 slots: Propulsion x1, Utility x1 932 | -8/Materials | Identified exit to Factory 932 | -8/Materials | Discovered exit to Factory (range 10) 961 | -8/Materials | Entered Factory 961 | -7/Factory | Evolved 2 slots: Propulsion x1, Utility x1 1070 | -7/Factory | Identified exit to Lower Caves 1070 | -7/Factory | Discovered exit to Lower Caves (range 8) 1080 | -7/Factory | Entered Lower Caves 1087 | -7/Lower Caves | Learned 8 Factory zone layouts 1541 | -7/Lower Caves | Encountered a Warlord checkpoint 2001 | -7/Lower Caves | Identified exit to Lower Caves 2001 | -7/Lower Caves | Discovered exit to Lower Caves (range 8) 2011 | -7/Lower Caves | Entered another Lower Caves area 2125 | -7/Lower Caves | Identified exit to Factory 2125 | -7/Lower Caves | Discovered exit to Factory (range 14) 2146 | -7/Lower Caves | Learned location of 1 exit from Factory 2159 | -7/Lower Caves | Entered Factory 2159 | -6/Factory | Evolved 2 slots: Utility x1, Weapon x1 2160 | -6/Factory | Identified exit to Factory 2428 | -6/Factory | Identified exit to Lower Caves 2539 | -6/Factory | Fabricated H-66 Slayer (x2) 2547 | -6/Factory | Sucked down chute 2547 | -6/Factory | Entered Waste 2562 | -6/Waste | EMP discharged 2590 | -6/Waste | 2 allies followed down the chute 2596 | -6/Waste | Spotted C-40 Crusher 2604 | -6/Waste | Allies destroyed C-40 Crusher 2626 | -6/Waste | Found Damper Plating 2635 | -6/Waste | Allies destroyed C-40 Crusher 2649 | -6/Waste | Spotted C-40 Crusher 2662 | -6/Waste | EMP discharged 2681 | -6/Waste | Spotted C-40 Crusher 2691 | -6/Waste | Crushed by Compactor (0 parts destroyed, 1 dropped) 2696 | -6/Waste | Spotted C-40 Crusher 2701 | -6/Waste | Spotted C-40 Crusher 2713 | -6/Waste | Crushed by Compactor (0 parts destroyed, 1 dropped) 2728 | -6/Waste | Crushed by Compactor (1 part destroyed, 2 dropped) 2749 | -6/Waste | Met Warlord forces unprepared to attack 2754 | -6/Waste | Allies destroyed C-40 Crusher 2759 | -6/Waste | Allies destroyed C-40 Crusher 2762 | -6/Waste | EMP discharged 2762 | -6/Waste | System corruption reached 10% 2763 | -6/Waste | Allies destroyed C-40 Crusher 2765 | -6/Waste | Allies destroyed C-40 Crusher 2804 | -6/Waste | Identified exit to Factory 2804 | -6/Waste | Discovered exit to Factory (range 13) 2831 | -6/Waste | Entered Factory 2831 | -6/Factory | Accompanied by 16 allies 3049 | -6/Factory | Discovered exit to Lower Caves (range 15) 3098 | -6/Factory | Entered Lower Caves 3098 | -6/Lower Caves | Accompanied by 9 allies 3188 | -6/Lower Caves | Learned Factory emergency access door positions 3192 | -6/Lower Caves | Identified exit to Lower Caves 3193 | -6/Lower Caves | Encountered a Warlord checkpoint 3294 | -6/Lower Caves | Attracted the attention of an 0b10 checkpoint 3332 | -6/Lower Caves | Attracted the attention of an 0b10 outpost 3364 | -6/Lower Caves | Build established: Hacker-Sprinter 3471 | -6/Lower Caves | Entered another Lower Caves area 3471 | -6/Lower Caves | Accompanied by 10 allies 3471 | -6/Lower Caves | Discovered exit to Factory (range 12) 3500 | -6/Lower Caves | Entered Factory 3500 | -5/Factory | Accompanied by 10 allies 3500 | -5/Factory | Evolved 2 slots: Propulsion x1, Utility x1 3501 | -5/Factory | Identified exit to Extension 3650 | -5/Factory | Entered Extension 3650 | -5/Extension | Accompanied by 10 allies 3653 | -5/Extension | Disrupted transfer network 3760 | -5/Extension | P-70 Sage assimilated allied Guardian 5a 3788 | -5/Extension | Spotted B-75 Beast 3812 | -5/Extension | Build established: Hacker-Mutant 3816 | -5/Extension | Allies destroyed B-75 Beast 3818 | -5/Extension | Spotted B-75 Beast 3896 | -5/Extension | Destroyed B-75 Beast 3903 | -5/Extension | Identified exit to Factory 3903 | -5/Extension | Discovered exit to Factory (range 3) 3917 | -5/Extension | Rescued a captive Derelict 3924 | -5/Extension | Lost 8 parts (1p1n3u3w) 3926 | -5/Extension | Rescued a captive Derelict 3927 | -5/Extension | Rescued a captive Derelict 3951 | -5/Extension | Rescued A7 4024 | -5/Extension | Rescued a captive Derelict 4029 | -5/Extension | Rescued a captive Derelict 4031 | -5/Extension | Rescued a captive Derelict 4032 | -5/Extension | Rescued a captive Derelict 4038 | -5/Extension | Discovered exit to Factory (range 10) 4038 | -5/Extension | Identified exit to Cetus 4038 | -5/Extension | Discovered exit to Cetus (range 6) 4119 | -5/Extension | Entered Cetus 4119 | -5/Cetus | Accompanied by 9 allies (A7) 4124 | -5/Cetus | Acquired a Cetus Manufacturing Module code from A7 4126 | -5/Cetus | Spotted Cetus Guard 4126 | -5/Cetus | Spotted Cetus Guard 4126 | -5/Cetus | Spotted Cetus Guard 4126 | -5/Cetus | Spotted Cetus Guard 4130 | -5/Cetus | Allies destroyed Cetus Guard 4139 | -5/Cetus | Started Cetus Manufacturing Module 4164 | -5/Cetus | Manufactured an Enhanced Grunt 4176 | -5/Cetus | Escorted A7 to Cetus Mainframe 4189 | -5/Cetus | Manufactured an Enhanced Grunt 4214 | -5/Cetus | Manufactured an Enhanced Grunt 4239 | -5/Cetus | Manufactured an Enhanced Grunt 4252 | -5/Cetus | Build established: Scavenger-Gunner 4264 | -5/Cetus | Manufactured an Enhanced Grunt 4294 | -5/Cetus | Cetus Manufacturing Module disabled 4555 | -5/Cetus | Identified exit to Archives 4555 | -5/Cetus | Discovered exit to Archives (range 17) 4657 | -5/Cetus | Entered Archives 4657 | -5/Archives | Accompanied by 11 allies (A7) 4662 | -5/Archives | Received a hacking code to weaken MAIN.C 4693 | -5/Archives | Identified exit to Hub_04(d) 4693 | -5/Archives | Discovered exit to Hub_04(d) (range 18) 4715 | -5/Archives | Discovered exit to Hub_04(d) (range 18) 4742 | -5/Archives | Unable to access archive contents 4761 | -5/Archives | Unable to access archive contents 4780 | -5/Archives | Unable to access archive contents 4796 | -5/Archives | Unable to access archive contents 4798 | -5/Archives | Discovered exit to Factory (range 18) 4913 | -5/Archives | Entered Hub_04(d) 4913 | -5/Hub_04(d) | Accompanied by 6 allies 5234 | -5/Hub_04(d) | Discovered exit to Factory (range 15) 5282 | -5/Hub_04(d) | Network Hub disabled 5284 | -5/Hub_04(d) | Spotted Lightning 5286 | -5/Hub_04(d) | Spotted Lightning 5287 | -5/Hub_04(d) | Spotted Lightning 5289 | -5/Hub_04(d) | Spotted Lightning 5289 | -5/Hub_04(d) | Spotted Lightning 5290 | -5/Hub_04(d) | Spotted Lightning 5291 | -5/Hub_04(d) | Spotted Lightning 5292 | -5/Hub_04(d) | Spotted Lightning 5296 | -5/Hub_04(d) | Spotted Lightning 5298 | -5/Hub_04(d) | Spotted B-75 Beast 5303 | -5/Hub_04(d) | Spotted Lightning 5325 | -5/Hub_04(d) | System corruption reached 10% 5348 | -5/Hub_04(d) | Entered Factory 5348 | -4/Factory | Evolved 2 slots: Utility x1, Weapon x1 5374 | -4/Factory | Lost 4 parts (1p1n1u1w) 6011 | -4/Factory | Repaired Quantum Rifle 6103 | -4/Factory | Identified exit to Research 6103 | -4/Factory | Discovered exit to Research (range 4) 6170 | -4/Factory | Entered Research 6170 | -3/Research | Evolved 2 slots: Utility x1, Weapon x1 6382 | -3/Research | Identified exit to Research 6382 | -3/Research | Discovered exit to Research (range 11) 7114 | -3/Research | Build established: Hacker-Gunner 7158 | -3/Research | Fabricated H-66 Slayer (x2) 7337 | -3/Research | Fabricated L-61 Swordsman (x3) 7355 | -3/Research | Local fabrication network quarantined 7391 | -3/Research | P-80 Master assimilated allied Swordsman 8c 7395 | -3/Research | P-80 Master assimilated allied Swordsman 8b 7399 | -3/Research | Fabricated L-61 Swordsman (x3) 7524 | -3/Research | Entered another Research area 7524 | -2/Research | Evolved 2 slots: Power x1, Utility x1 7593 | -2/Research | Spotted B-90 Cyclops 7630 | -2/Research | Destroyed B-90 Cyclops 7702 | -2/Research | Identified exit to Testing 7913 | -2/Research | System corruption reached 10% 7998 | -2/Research | Lost 4 parts (1p3w) 8046 | -2/Research | Destroyed 7 combat bots 8286 | -2/Research | Build established: Scavenger-Gunner 8338 | -2/Research | Spotted B-90 Cyclops 8432 | -2/Research | Found Prototype Processor 8432 | -2/Research | Identified Exp. Target Analyzer 8435 | -2/Research | Found Prototype Device 8435 | -2/Research | Identified Adv. Kinecellerator 8775 | -2/Research | Entered Testing 8805 | -2/Testing | Found Fusion Bomb Launcher 8902 | -2/Testing | Repaired Adv. Coolant Injector 8980 | -2/Testing | Build established: Hacker-Gunner 9002 | -2/Testing | Found Unknown Device 9002 | -2/Testing | Identified Antimissile System 9029 | -2/Testing | Scanned by Researcher 9136 | -2/Testing | Found Prototype Ballistic Gun 9136 | -2/Testing | Identified Hyp. Multirail 9219 | -2/Testing | System corruption reached 30% 9264 | -2/Testing | Found Prototype Energy Cannon 9264 | -2/Testing | Identified Null Cannon 9318 | -2/Testing | Found Prototype Energy Cannon 9318 | -2/Testing | Identified Hpw. Disruptor Cannon 9460 | -2/Testing | Found Prototype Device 9460 | -2/Testing | Identified Thermal Barrier 9681 | -2/Testing | Spotted Fortress 9775 | -2/Testing | First assault squad dispatched 9798 | -2/Testing | Lost 4 parts (1u3w) 9868 | -2/Testing | Lost 7 parts (2p1n2u2w) 9932 | -2/Testing | Core integrity fell below 50% 9981 | -2/Testing | Core integrity fell below 20% 10007 | -2/Testing | Identified exit to Section 7 10007 | -2/Testing | Discovered exit to Section 7 (range 7) 10011 | -2/Testing | Entered Section 7 10023 | -2/Section 7 | Build established: Hacker-Mutant 10045 | -2/Section 7 | Destroyed by S-43 Plague with Heavy Machine Gun Last Messages --------------- 09958_ Dropped Myomer Leg. 09964_ Dropped Lgt. Quantum Reactor. 09976_ S,G51CEC:C%OM%K1